lending/lending_fUSD_20251021
["ID","MTS","AMOUNT","RATE_DAILY","PERIOD"]
[391978761,1761051038878,-153.0,0.00030281,30]
[391978762,1761051038889,-380.0,0.00030284,30]
[391978764,1761051038898,-380.0,0.00030284,30]
[391978766,1761051038909,-380.0,0.00030284,30]
[391978768,1761051038919,-380.0,0.00030284,30]
[391978770,1761051038928,-380.0,0.00030284,30]
[391978772,1761051038939,-380.0,0.00030284,30]
[391978774,1761051038953,-380.0,0.00030284,30]
[391978776,1761051038963,-380.0,0.00030284,30]
[391978778,1761051038973,-380.0,0.00030284,30]
[391978780,1761051038983,-380.0,0.00030284,30]
[391978782,1761051038992,-380.0,0.00030284,30]
[391978785,1761051039002,-380.0,0.00030284,30]
[391978787,1761051039013,-380.0,0.00030284,30]
[391978789,1761051039023,-380.0,0.00030284,30]
[391978791,1761051039032,-153.0,0.0003029,30]
[391978793,1761051039042,-153.0,0.0003029,30]
[391978794,1761051039051,-153.0,0.0003029,30]
[391978796,1761051039060,-153.0,0.0003029,30]
[391978798,1761051039071,-153.0,0.0003029,30]
[391978801,1761051039084,-153.0,0.0003029,30]
[391978803,1761051039098,-153.0,0.0003029,30]
[391978805,1761051039110,-153.0,0.0003029,30]
[391978807,1761051039121,-153.0,0.0003029,30]
[391978809,1761051039131,-153.0,0.0003029,30]
[391978811,1761051039141,-153.0,0.0003029,30]
[391978813,1761051039151,-153.0,0.0003029,30]
[391978815,1761051039160,-266.0,0.00030293,30]
[391978817,1761051039170,-266.0,0.00030293,30]
[391978819,1761051039180,-266.0,0.00030293,30]
[391978821,1761051039189,-266.0,0.00030293,30]
[391978823,1761051039200,-266.0,0.00030293,30]
[391978825,1761051039210,-266.0,0.00030293,30]
[391978827,1761051039220,-266.0,0.00030293,30]
[391978828,1761051039229,-266.0,0.00030293,30]
[391978830,1761051039239,-266.0,0.00030293,30]
[391978832,1761051039249,-266.0,0.00030293,30]
[391978835,1761051039258,-266.0,0.00030293,30]
[391978837,1761051039268,-266.0,0.00030293,30]
[391978838,1761051039278,-266.0,0.00030293,30]
[391978840,1761051039288,-266.0,0.00030293,30]
[391978842,1761051039298,-153.0,0.00030299,30]
[391978844,1761051039308,-153.0,0.00030299,30]
[391978847,1761051039317,-153.0,0.00030299,30]
[391978849,1761051039327,-153.0,0.00030299,30]
[391978850,1761051039336,-153.0,0.00030299,30]
[391978853,1761051039346,-153.0,0.00030299,30]
[391978854,1761051039355,-153.0,0.00030299,30]
[391978856,1761051039364,-153.0,0.00030299,30]
[391978858,1761051039379,-153.0,0.00030299,30]
[391978860,1761051039389,-153.0,0.00030299,30]
[391978863,1761051039398,-153.0,0.00030299,30]
[391978865,1761051039408,-153.0,0.00030299,30]
[391978867,1761051039418,-182.21413886,0.000303,2]
[391978869,1761051039427,-229.0,0.00030302,30]
[391978871,1761051039436,-229.0,0.00030302,30]
[391978873,1761051039445,-229.0,0.00030302,30]
[391978875,1761051039455,-229.0,0.00030302,30]
[391978876,1761051039464,-229.0,0.00030302,30]
[391978878,1761051039474,-229.0,0.00030302,30]
[391978880,1761051039483,-229.0,0.00030302,30]
[391978882,1761051039492,-229.0,0.00030302,30]
[391978884,1761051039502,-229.0,0.00030302,30]
[391978886,1761051039512,-229.0,0.00030302,30]
[391978888,1761051039521,-229.0,0.00030302,30]
[391978891,1761051039530,-229.0,0.00030302,30]
[391978892,1761051039539,-229.0,0.00030302,30]
[391978894,1761051039549,-229.0,0.00030302,30]
[391978896,1761051039558,-254.53,0.00030338,7]
[391978898,1761051039567,-254.56,0.00030612,7]
[391978900,1761051039576,-3116.00090177,0.0003069,2]
[391978903,1761051039586,-3346.0,0.000307,5]
[391978905,1761051039595,-307.0,0.00030716,2]
[391978907,1761051039604,-1631.7026,0.0003079,2]
[391978908,1761051039614,-166.66,0.00030819,30]
[391978910,1761051039623,-47398.72806617,0.00030819,2]
[391978913,1761051039636,-1756.02565481,0.00030819,2]
[391978915,1761051039646,-2504.8107065,0.00031159,2]
[391978917,1761051039656,-150.0,0.00031216,7]
[391978919,1761051039665,-150.0,0.00031216,7]
[391978921,1761051039673,-150.0,0.00031216,7]
[391978923,1761051039682,-150.0,0.00031216,7]
[391978925,1761051039691,-150.75442953,0.00031216,7]
[391978927,1761051039700,-150.0,0.00031216,7]
[391978930,1761051039709,-150.0,0.00031216,7]
[391978932,1761051039723,-150.0,0.00031216,7]
[391978934,1761051039732,-150.67562317,0.00031216,7]
[391978936,1761051039741,-150.97585933,0.00031216,7]
[391978938,1761051039751,-150.0,0.00031216,7]
[391978940,1761051039760,-153.15942376,0.00031216,7]
[391978943,1761051039770,-151.28843052,0.00031216,7]
[391978945,1761051039779,-31.65987237,0.00031216,7]
[391978948,1761051039790,-118.34012763,0.00031216,7]
[391978950,1761051039800,-4239.7954056,0.00031275,2]
[391978952,1761051039810,-857.4808847,0.00031323,2]
[391978954,1761051039819,-227.7959818,0.00031349,2]
[391978956,1761051039828,-749.2499713,0.00031354,2]
[391978958,1761051039837,-166.66,0.00031455,30]
[391978960,1761051039846,-4245.28958157,0.00031525,2]
[391978962,1761051039858,-1944.96041843,0.00031525,2]
[391978964,1761051039867,-233.31,0.00031548,120]
[391978966,1761051039877,-666.0,0.000317,3]
[391978968,1761051039887,-1631.7026,0.0003179,2]
[391978970,1761051039896,-150.0,0.00031795,7]
[391978972,1761051039906,-2051.25798369,0.00032,120]
[391978990,1761051040064,-281.35289981,0.00031187,2]
[391978993,1761051040076,-857.13757887,0.00031187,2]
[391978995,1761051040092,-1977.51042307,0.00031187,2]
[391978997,1761051040102,-4735.42344311,0.00032,120]
[391978999,1761051040111,-220.81410632,0.00032,120]
[391979001,1761051040120,-170.23429059,0.00032,120]
[391979003,1761051040129,-201.47583313,0.00032,120]
[391979005,1761051040139,-183.141745,0.00032,120]
[391979007,1761051040148,-191.58816148,0.00032,120]
[391979009,1761051040157,-182.52984056,0.00032,120]
[391979011,1761051040166,-166.66,0.0003209,30]
[391979013,1761051040175,-150.0,0.000321,30]
[391979015,1761051040184,-157.4,0.00032103,2]
[391979017,1761051040193,-152.0,0.00032293,4]
[391979019,1761051040203,-150.0,0.00032373,7]
[391979021,1761051040212,-150.0,0.00032373,7]
[391979023,1761051040220,-267.45743459,0.00032475,2]
[391979025,1761051040229,-1000.0,0.00032617,2]
[391979027,1761051040238,-166.66,0.00032726,30]
[391979029,1761051040248,-2500.0,0.00032777,2]
[391979031,1761051040257,-1631.7026,0.0003279,2]
[391979033,1761051040267,-335.9497034,0.00032877,2]
[391979035,1761051040276,-461.0,0.00032915,5]
[391979037,1761051040285,-150.0,0.00032951,7]
[391979039,1761051040294,-150.0,0.00032951,7]
[391979041,1761051040303,-150.0,0.00032951,7]
[391979043,1761051040313,-150.0,0.00032951,7]
[391979044,1761051040322,-181.01,0.00032985,30]
[391979046,1761051040333,-506.95954626,0.00033,2]
[391979048,1761051040342,-2179.68934181,0.00033,120]
[391979052,1761051040362,-653.47094113,0.00033,120]
[391979214,1761051042965,-1093.1555,0.00033,120]
[391979215,1761051042976,-363.01273596,0.00033,120]
[391979216,1761051043076,-2497.3529079,0.00033,120]
[391979217,1761051043087,-220.81410632,0.00033,120]
[391979218,1761051043096,-170.23429059,0.00033,120]
[391979219,1761051043106,-191.58816148,0.00033,120]
[391979220,1761051043115,-182.52984056,0.00033,120]
[391979221,1761051043124,-500.0,0.00033046,7]
[391979222,1761051043133,-900.0,0.00033046,7]
[391979223,1761051043142,-500.0,0.00033046,7]
[391979224,1761051043152,-500.0,0.00033151,2]
[391979225,1761051043162,-150.0,0.00033151,2]
[391979226,1761051043172,-150.0,0.00033151,2]
[391979227,1761051043182,-150.0,0.00033151,2]
[391979228,1761051043191,-150.0,0.00033151,2]
[391979229,1761051043202,-215.94485222,0.00033151,2]
[391979230,1761051043212,-250.0,0.00033151,2]
[391979231,1761051043223,-150.0,0.00033151,2]
[391979232,1761051043232,-265.97,0.00033165,2]
[391979233,1761051043242,-500.0,0.00033206,2]
[391979234,1761051043252,-150.0,0.00033206,2]
[391979235,1761051043262,-500.0,0.00033261,2]
[391979236,1761051043271,-271.2142661,0.00033261,2]
[391979237,1761051043281,-400.0,0.00033315,2]
[391979238,1761051043292,-166.66,0.00033361,30]
[391979239,1761051043302,-150.0,0.00033377,3]
[391979240,1761051043313,-500.0,0.00033452,2]
[391979241,1761051043323,-17817.59327,0.00033453,4]
[391979242,1761051043333,-150.0,0.00033529,7]
[391979243,1761051043342,-150.0,0.00033529,7]
[391979244,1761051043353,-1448.90755179,0.00033562,2]
[391979245,1761051043363,-301.64,0.00033649,2]
[391979246,1761051043373,-150.0,0.000337,60]
[391979247,1761051043383,-1631.70259,0.0003379,2]
[391979248,1761051043394,-1504.0,0.000338,2]
[391979249,1761051043403,-900.0,0.00033868,7]
[391979250,1761051043413,-500.0,0.00033868,7]
[391979251,1761051043423,-6786.6814268,0.000339,120]
[391979252,1761051043433,-170.23429059,0.000339,120]
[391979253,1761051043442,-182.52984056,0.000339,120]
[391979254,1761051043452,-161.953396,0.0003397,30]
[391979255,1761051043462,-200.31823763,0.00034,30]
[391979257,1761051043471,-897.6762,0.00034,2]
[391979258,1761051043480,-1964.79504507,0.00034081,2]
[391979259,1761051043490,-150.0,0.00034107,7]
[391979260,1761051043500,-1017.1677166,0.00034165,6]
[391979261,1761051043510,-153.60796277,0.00034165,15]
[391979262,1761051043521,-1223.10953154,0.00034165,2]
[391979263,1761051043531,-150.48885258,0.00034165,2]
[391979264,1761051043540,-191.82334993,0.00034226,7]
[391979265,1761051043550,-509.91183313,0.00034245,14]
[391979266,1761051043559,-500.0,0.00034245,14]
[391979267,1761051043568,-500.0,0.00034245,7]
[391979268,1761051043577,-1000.0,0.00034246,45]
[391979269,1761051043586,-1000.0,0.00034246,45]
[391979270,1761051043596,-1000.0,0.00034246,45]
[391979271,1761051043605,-1000.0,0.00034246,45]
[391979272,1761051043615,-1000.0,0.00034246,45]
[391979273,1761051043624,-1032.31861983,0.00034246,45]
[391979274,1761051043634,-500.0,0.00034253,14]
[391979275,1761051043643,-200.0,0.00034265,2]
[391979276,1761051043652,-500.0,0.00034265,2]
[391979277,1761051043661,-3300.0,0.00034265,30]
[391979278,1761051043670,-185.20409399,0.00034265,2]
[391979279,1761051043679,-156.3,0.00034265,2]
[391979280,1761051043689,-10813.45540985,0.00034265,2]
[391979281,1761051043698,-396.59477054,0.00034265,2]
[391979282,1761051043707,-154590.18478865,0.00034265,2]
[391979283,1761051043718,-86449.21614302,0.00034265,2]
[391979284,1761051043729,-10256.11709168,0.00034265,2]
[391979285,1761051043738,-23350.71148976,0.00034265,2]
[391979286,1761051043747,-489.35566178,0.00034265,2]
[391979287,1761051043757,-888.94917845,0.00034265,2]
[391979288,1761051043767,-467.23283051,0.00034265,2]
[391979289,1761051043776,-150.0,0.00034265,2]
[391979290,1761051043786,-160.0,0.00034265,2]
[391979291,1761051043797,-598.76483212,0.00034265,2]
[391979292,1761051043807,-12802.52500232,0.00034265,2]
[391979293,1761051043816,-160.25286929,0.00034265,2]
[391979294,1761051043825,-202.34190288,0.00034265,2]
[391979295,1761051043835,-464.54769552,0.00034265,2]
[391979296,1761051043844,-753.32503329,0.00034265,2]
[391979297,1761051043853,-848.04947078,0.00034265,2]
[391979298,1761051043862,-4266.0,0.00034265,2]
[391979299,1761051044017,-184.5667483,0.00034265,2]
[391979300,1761051044057,-3352.96442074,0.00034265,2]
[391979301,1761051044067,-300.0,0.00034267,67]
[391979302,1761051044077,-1223.10953145,0.00034276,2]
[391979303,1761051044086,-2504.8107065,0.00034304,2]
[391979304,1761051044096,-200.0,0.00034323,10]
[391979305,1761051044105,-1223.10953145,0.00034387,2]
[391979306,1761051044115,-200.0,0.00034388,2]
[391979307,1761051044125,-1000.0,0.00034409,2]
[391979308,1761051044134,-1425.0,0.00034422,2]
[391979309,1761051044144,-152.16217092,0.00034434,2]
[391979310,1761051044155,-966.63790945,0.00034451,2]
[391979311,1761051044169,-151.0,0.00034452,7]
[391979312,1761051044180,-600.0,0.0003447,2]
[391979313,1761051044190,-4239.7954056,0.00034478,2]
[391979314,1761051044200,-1000.0,0.00034485,2]
[391979315,1761051044212,-1223.10953145,0.00034498,2]
[391979316,1761051044224,-1425.0,0.000345,2]
[391979317,1761051044235,-971.0,0.000345,2]
[391979318,1761051044247,-301.0,0.000345,2]
[391979319,1761051044258,-443.0,0.000345,2]
[391979320,1761051044269,-1000.0,0.00034502,13]
[391979321,1761051044280,-1000.0,0.00034502,13]
[391979322,1761051044292,-1000.0,0.00034502,13]
[391979323,1761051044302,-1000.0,0.00034502,13]
[391979324,1761051044313,-1144.57971631,0.00034502,13]
[391979325,1761051044322,-1425.0,0.00034505,2]
[391979326,1761051044332,-272.70263379,0.00034509,30]
[391979327,1761051044342,-215.0738,0.00034515,30]
[391979328,1761051044352,-150.0,0.00034521,2]
[391979329,1761051044363,-1425.0,0.00034522,2]
[391979330,1761051044372,-150.48885257,0.00034527,2]
[391979331,1761051044381,-8808.81778933,0.00034548,2]
[391979332,1761051044391,-500.0,0.00034549,120]
[391979333,1761051044401,-857.4808847,0.0003455,2]
[391979334,1761051044418,-5000.0,0.00034558,2]
[391979335,1761051044427,-244.37372023,0.00034561,8]
[391979336,1761051044437,-163.56489767,0.00034585,2]
[391979337,1761051044447,-161.51414932,0.0003459,2]
[391979338,1761051044456,-6848.23095503,0.0003459,2]
[391979339,1761051044466,-418.8844,0.0003459,10]
[391979340,1761051044476,-1000.0,0.00034593,2]
[391979341,1761051044486,-1425.0,0.00034595,2]
[391979342,1761051044496,-749.2499713,0.00034597,2]
[391979343,1761051044515,-253.49893359,0.000346,2]
[391979344,1761051044526,-152.94130904,0.00034601,2]
[391979345,1761051044536,-1223.10953145,0.00034609,2]
[391979346,1761051044547,-52852.906736,0.00034648,2]
[391979347,1761051044557,-500.0,0.00034657,2]
[391979348,1761051044566,-106391.0,0.00034658,2]
[391979349,1761051044576,-8808.81778933,0.0003466,2]
[391979350,1761051044586,-1000.0,0.00034669,30]
[391979351,1761051044595,-8808.81778933,0.00034669,2]
[391979352,1761051044605,-400.0,0.0003467,2]
[391979353,1761051044615,-150.0,0.0003467,2]
[391979354,1761051044625,-61661.7245253,0.0003467,2]
[391979355,1761051044635,-150.0,0.00034672,2]
[391979356,1761051044645,-502.69763553,0.00034673,5]
[391979357,1761051044655,-207.4,0.00034675,30]
[391979358,1761051044669,-157.34179312,0.00034677,14]
[391979359,1761051044679,-8808.81778933,0.00034679,2]
[391979360,1761051044688,-500.0,0.0003468,14]
[391979361,1761051044698,-96896.9956826,0.0003468,2]
[391979362,1761051044707,-150.6,0.0003468,2]
[391979363,1761051044718,-150.0,0.00034685,7]
[391979364,1761051044730,-162.41386365,0.00034685,7]
[391979365,1761051044739,-150.0,0.00034685,7]
[391979366,1761051044749,-150.0,0.00034685,7]
[391979367,1761051044759,-153.77657523,0.00034685,7]
[391979368,1761051044768,-150.0,0.00034685,7]
[391979369,1761051044778,-150.0,0.00034685,7]
[391979370,1761051044787,-666.0,0.00034689,10]
[391979371,1761051044798,-500.0,0.00034689,14]
[391979372,1761051044808,-500.0,0.00034689,14]
[391979373,1761051044817,-500.0,0.00034689,14]
[391979374,1761051044826,-506.79812795,0.00034689,14]
[391979375,1761051044835,-10000.0,0.00034689,2]
[391979376,1761051044844,-200.0,0.00034689,30]
[391979377,1761051044855,-500.0,0.00034689,2]
[391979378,1761051044865,-500.0,0.00034689,2]
[391979379,1761051044874,-500.0,0.00034689,2]
[391979380,1761051044884,-500.0,0.00034689,2]
[391979381,1761051044893,-500.0,0.00034689,2]
[391979382,1761051044902,-500.0,0.00034689,2]
[391979383,1761051044917,-500.0,0.00034689,2]
[391979384,1761051044926,-500.0,0.00034689,2]
[391979385,1761051044936,-500.0,0.00034689,2]
[391979386,1761051044945,-500.0,0.00034689,2]
[391979387,1761051044955,-500.0,0.00034689,2]
[391979388,1761051044964,-1999.0,0.00034689,120]
[391979389,1761051044972,-900.0,0.0003469,7]
[391979390,1761051044981,-500.0,0.0003469,7]
[391979391,1761051044991,-1400656.85485637,0.0003469,21]
[391979396,1761051046087,-168.0,0.00015001,2]
[391979397,1761051046096,-1196.21907756,0.00031684,2]
[391979398,1761051046187,-1686.21646965,0.00031684,2]
[391979399,1761051046198,-233.56535454,0.00031684,2]
[391979400,1761051046207,-150.0,0.00033546,3]
[391979401,1761051046216,-1862.88952816,0.0003469,21]
[391979404,1761051066387,150.38637213,0.00020194,120]
[391979723,1761051326704,-300.0,0.00018585,2]
[391980044,1761051647074,340.09,0.00013699,2]
[391980045,1761051650530,5050.0,0.00034264,37]
[391980089,1761051830087,150.21,0.00034264,30]
[391980096,1761051862482,150.21,0.00034264,30]
[391980261,1761052232271,-902.0,0.00018789,2]
[391980263,1761052232280,-1184.0,0.00018789,2]
[391980265,1761052232290,-2548.0,0.00018789,2]
[391980267,1761052232302,-175.93135235,0.00018841,2]
[391980269,1761052232311,-150.0,0.00018905,2]
[391980271,1761052232321,-213.61412891,0.00019308,2]
[391980273,1761052232331,-3339.0,0.00019911,2]
[391980275,1761052232340,-340.09,0.00020187,2]
[391980277,1761052232350,-300.0,0.00020668,2]
[391980279,1761052232360,-424.512,0.00021789,2]
[391980281,1761052232369,-2548.0,0.00021789,2]
[391980283,1761052232379,-159.0,0.00023,7]
[391980285,1761052232389,-414.89344881,0.00023307,2]
[391980287,1761052232399,-571.096,0.00024789,2]
[391980289,1761052232410,-2953.34,0.00024789,2]
[391980291,1761052232420,-1676.05,0.00024789,2]
[391980293,1761052232429,-2296.33,0.00024789,2]
[391980296,1761052232440,-340.09,0.00026676,2]
[391980299,1761052232450,-900.0,0.000275,2]
[391980301,1761052232460,-901.0,0.000285,3]
[391980304,1761052232470,-153.0,0.00030237,30]
[391980307,1761052232480,-153.0,0.00030237,30]
[391980310,1761052232490,-153.0,0.00030237,30]
[391980313,1761052232505,-153.0,0.00030237,30]
[391980316,1761052232516,-153.0,0.00030237,30]
[391980317,1761052232527,-153.0,0.00030239,30]
[391980318,1761052232536,-153.0,0.00030239,30]
[391980319,1761052232546,-153.0,0.00030239,30]
[391980320,1761052232556,-153.0,0.00030239,30]
[391980321,1761052232564,-153.0,0.00030239,30]
[391980322,1761052232574,-153.0,0.00030239,30]
[391980323,1761052232583,-153.0,0.00030239,30]
[391980324,1761052232592,-153.0,0.00030239,30]
[391980325,1761052232603,-153.0,0.00030239,30]
[391980326,1761052232612,-153.0,0.00030239,30]
[391980327,1761052232622,-153.0,0.00030246,30]
[391980328,1761052232631,-153.0,0.00030246,30]
[391980329,1761052232641,-153.0,0.00030246,30]
[391980330,1761052232651,-153.0,0.00030246,30]
[391980331,1761052232660,-153.0,0.00030246,30]
[391980332,1761052232670,-153.0,0.00030246,30]
[391980333,1761052232679,-153.0,0.00030248,30]
[391980334,1761052232689,-153.0,0.00030248,30]
[391980335,1761052232699,-153.0,0.00030248,30]
[391980336,1761052232708,-153.0,0.00030248,30]
[391980337,1761052232717,-153.0,0.00030248,30]
[391980338,1761052232727,-153.0,0.00030248,30]
[391980339,1761052232736,-153.0,0.00030248,30]
[391980340,1761052232745,-153.0,0.00030248,30]
[391980341,1761052232760,-153.0,0.00030248,30]
[391980342,1761052232770,-153.0,0.00030248,30]
[391980343,1761052232779,-153.0,0.00030254,30]
[391980344,1761052232789,-153.0,0.00030254,30]
[391980345,1761052232798,-153.0,0.00030254,30]
[391980346,1761052232807,-153.0,0.00030254,30]
[391980347,1761052232817,-153.0,0.00030254,30]
[391980349,1761052232825,-153.0,0.00030256,30]
[391980350,1761052232834,-153.0,0.00030256,30]
[391980351,1761052232843,-153.0,0.00030256,30]
[391980352,1761052232853,-153.0,0.00030256,30]
[391980353,1761052232863,-153.0,0.00030256,30]
[391980354,1761052232872,-153.0,0.00030256,30]
[391980355,1761052232882,-153.0,0.00030256,30]
[391980356,1761052232891,-153.0,0.00030256,30]
[391980357,1761052232900,-153.0,0.00030256,30]
[391980358,1761052232911,-153.0,0.00030256,30]
[391980359,1761052232921,-153.0,0.00030261,30]
[391980360,1761052232930,-153.0,0.00030261,30]
[391980361,1761052232939,-153.0,0.00030261,30]
[391980362,1761052232948,-153.0,0.00030261,30]
[391980363,1761052232958,-153.0,0.00030261,30]
[391980364,1761052232967,-153.0,0.00030261,30]
[391980365,1761052232976,-153.0,0.00030265,30]
[391980366,1761052232985,-153.0,0.00030265,30]
[391980367,1761052232994,-153.0,0.00030265,30]
[391980368,1761052233007,-153.0,0.00030265,30]
[391980369,1761052233016,-153.0,0.00030265,30]
[391980370,1761052233026,-153.0,0.00030265,30]
[391980371,1761052233035,-153.0,0.00030265,30]
[391980372,1761052233044,-153.0,0.00030265,30]
[391980373,1761052233054,-153.0,0.00030265,30]
[391980374,1761052233063,-153.0,0.00030265,30]
[391980375,1761052233072,-500.0,0.000303,2]
[391980376,1761052233083,-151.0,0.0003032,2]
[391980377,1761052233093,-151.0,0.0003032,2]
[391980378,1761052233103,-151.0,0.0003032,2]
[391980379,1761052233112,-151.0,0.0003032,2]
[391980380,1761052233122,-151.0,0.0003032,2]
[391980381,1761052233132,-151.0,0.0003032,2]
[391980382,1761052233141,-151.0,0.0003032,2]
[391980383,1761052233151,-151.0,0.0003032,2]
[391980384,1761052233161,-151.0,0.0003032,2]
[391980385,1761052233171,-151.0,0.0003032,2]
[391980386,1761052233180,-151.0,0.0003032,2]
[391980387,1761052233190,-151.0,0.0003032,2]
[391980388,1761052233199,-151.0,0.0003032,2]
[391980389,1761052233208,-151.0,0.0003032,2]
[391980390,1761052233217,-151.0,0.0003032,2]
[391980391,1761052233231,-151.0,0.0003032,2]
[391980392,1761052233241,-1141.46313534,0.0003033,2]
[391980393,1761052233253,-1505.0,0.000307,2]
[391980394,1761052233263,-911.802,0.00030719,27]
[391980395,1761052233273,-3238.5966,0.00030719,2]
[391980396,1761052233282,-150.0,0.00031315,7]
[391980397,1761052233292,-256.78269849,0.00031336,2]
[391980398,1761052233301,-1000.0,0.00031382,2]
[391980399,1761052233311,-200.0,0.0003154,2]
[391980400,1761052233320,-188.53,0.00031803,30]
[391980401,1761052233330,-2027.29,0.00031855,2]
[391980402,1761052233340,-250.0,0.00031882,7]
[391980403,1761052233349,-155.02,0.00031963,2]
[391980404,1761052233359,-170.23429058,0.00032,120]
[391980405,1761052233368,-4750.67699876,0.00032,120]
[391980406,1761052233378,-182.52984056,0.00032,120]
[391980407,1761052233387,-1780.07332377,0.00032,2]
[391980412,1761052238145,-2219.92667623,0.00032,2]
[391980413,1761052238156,-250.0,0.00032228,2]
[391980414,1761052238167,-666.0,0.00032251,3]
[391980415,1761052238178,-203.07,0.00032411,5]
[391980416,1761052238189,-150.0,0.00032475,7]
[391980417,1761052238200,-1445.90106338,0.00032633,2]
[391980418,1761052238213,-406.51893662,0.00032633,2]
[391980419,1761052238226,-5242.69,0.00032667,2]
[391980421,1761052238237,-324.93596208,0.00032877,2]
[391980423,1761052238249,-752.17180948,0.00032983,7]
[391980426,1761052238266,-4837.11293873,0.00032983,7]
[391980428,1761052238278,-1396.58969414,0.00032983,7]
[391980430,1761052238290,-1846.87555765,0.00032983,7]
[391980432,1761052238302,-170.23429058,0.00033,120]
[391980434,1761052238312,-4750.67699876,0.00033,120]
[391980436,1761052238322,-182.52984056,0.00033,120]
[391980438,1761052238331,-2836.0,0.00033,15]
[391980440,1761052238341,-5000.0,0.00033,2]
[391980442,1761052238350,-1000.0,0.00033,7]
[391980444,1761052238360,-500.0,0.00033046,7]
[391980446,1761052238370,-500.0,0.00033046,7]
[391980448,1761052238379,-700.0,0.00033046,7]
[391980450,1761052238390,-340.09,0.00033165,2]
[391980452,1761052238400,-2566.51,0.00033241,2]
[391980454,1761052238410,-150.0,0.00033635,7]
[391980456,1761052238420,-151.91,0.00033671,2]
[391980458,1761052238430,-700.0,0.00033868,7]
[391980460,1761052238439,-4750.67699876,0.000339,120]
[391980462,1761052238449,-155.02,0.00033961,2]
[391980464,1761052238459,-3447.84820405,0.00034,2]
[391980466,1761052238471,-3114.34231583,0.00034,2]
[391980468,1761052238481,-400.0,0.00034,120]
[391980470,1761052238491,-336.48,0.00034015,2]
[391980472,1761052238501,-1086.68066385,0.00034046,2]
[391980474,1761052238513,-8385.3012,0.00034165,2]
[391980476,1761052238523,-500.0,0.00034245,14]
[391980478,1761052238533,-156.3,0.00034265,2]
[391980480,1761052238543,-150.2,0.00034265,30]
[391980482,1761052238553,-184.62,0.000343,60]
[391980484,1761052238563,-200.0,0.00034367,10]
[391980486,1761052238573,-150.0,0.00034521,2]
[391980488,1761052238582,-200.0,0.00034521,2]
[391980490,1761052238592,-150.0,0.00034521,2]
[391980492,1761052238601,-150.0,0.00034521,2]
[391980494,1761052238611,-500.0,0.00034522,120]
[391980496,1761052238621,-405.2307,0.00034573,2]
[391980498,1761052238631,-2181.20063127,0.0003458,2]
[391980500,1761052238640,-611.55476577,0.0003458,2]
[391980502,1761052238650,-949.35653554,0.0003458,7]
[391980504,1761052238660,-2500.0,0.0003458,2]
[391980506,1761052238670,-153.6079627,0.00034589,15]
[391980508,1761052238679,-150.48885257,0.00034589,2]
[391980510,1761052238689,-5000.0,0.0003459,2]
[391980512,1761052238698,-915.0,0.000346,2]
[391980514,1761052238708,-999.0,0.000346,2]
[391980516,1761052238718,-7745.14891775,0.0003467,2]
[391980518,1761052238727,-18919.74021329,0.00034679,2]
[391980684,1761052240279,-150.0,0.00033377,3]
[391980686,1761052240289,-1473.75,0.00034679,2]
[391980691,1761052240338,-342.18500025,0.00034679,2]